Cogmind - Beta 10.2 @@@ ROGUE MODE // 2021.09.03 @ 23:27:47 Player: Savant Result: Destroyed by S-43 Plague with Heavy Machine Gun Performance ------------- Evolutions (7) 3500 Regions Visited (26) 5200 Robots Destroyed (298) 1490 Value Destroyed (12699) 12699 Prototype IDs (75) 1500 Alien Tech Used (0) 0 Bonus (9274) 9274 TOTAL SCORE: 33663 Bonus ------- Triggered High Security 500 High Alert Combat Kills 3707 Follower Combat Kills 4108 Network Hubs Disabled 200 Met Imprinter 300 Was Imprinted 300 MAIN.C Attacked Warlord 500 Warlord Defense Kill 494 Friendly Fire -835 Cogmind --------- Core Integrity 0/1300 Matter 215/300 Energy 98/100 System Corruption 0% Temperature Cool (3) Movement Flying (32) Location -3/Research Parts ------- > --- POWER (1) -------- (None) > --- PROPULSION (4) --- Cooled Impulse Thruster > --- UTILITY (10) ----- Advanced Heat Sink Improved Coolant Injector Advanced Terrain Scan Processor Advanced Melee Analysis Suite Advanced System Shield > --- WEAPON (6) ------- Railgun Railgun > --- INVENTORY (4) ---- Zionite Biocell (1000) Experimental Sensor Array Hacking Drone Bay (1/1) Railgun Peak State ------------ > --- POWER ------------ Heavy Antimatter Reactor > --- PROPULSION ------- Improved Treads > --- UTILITY ---------- Improved Heat Sink High-capacity Storage Unit Experimental Sensor Array Advanced Signal Interpreter Long-range Terrain Scanner Advanced Terrain Scan Processor Advanced Target Analyzer Advanced Field Recycling Unit Minesniffer Drone Bay > --- WEAPON ----------- BFG-9k Vortex Edition > --- INVENTORY -------- High-capacity Storage Unit Zionite Biocell Advanced Matter Compressor Hacking Drone Bay Power Sword [Rating: 133] Favorites ----------- Power Enhanced Nuclear Core Engine Cooled Deuterium Engine Power Core Enhanced Nuclear Core Reactor Zionite Light DM Reactor Propulsion Armored Wheel Treads Light Treads Leg Carbon-fiber Leg Wheel Armored Wheel Hover Unit Gravmag System Flight Unit Impulse Thruster Array Utility High-capacity Storage Unit Device Long-range Terrain Scanner Storage High-capacity Storage Unit Processor Advanced Targeting Computer Hackware System Shield Protection Reflective Plating Weapon Flak Gun Energy Gun Arc Projector Energy Cannon EM Pulse Cannon Ballistic Gun Flak Gun Ballistic Cannon Bore Cannon Launcher Heavy Missile Launcher Special Weapon Mining Laser Slashing Weapon Chainsword Build | -11 -10 -10 -9 -9 -9 -8 -8 -7 -7 -7 -7 -7 -7 -6 -6 -6 -6 -6 -6 -5 -5 -5 -5 -4 -4 -3 ------- Run | Scr Mat Min Mat Min Exi Min Mat Fac Was Fac Low Low Zio Pro Fac Ext Cet Arc Hub Fac Upp Upp War Pro Fac Res Slots Evolved 14 | . . . 2 . . . 2 2 . . . . . . 2 . . . . 2 . . . . 2 2 Power . | . . . . . . . . . . . . . . . . . . . . . . . . . . . Propulsion 2 | . . . 1 . . . . . . . . . . . 1 . . . . . . . . . . . Utility 8 | . . . 1 . . . 1 1 . . . . . . 1 . . . . 2 . . . . 2 . Weapon 4 | . . . . . . . 1 1 . . . . . . . . . . . . . . . . . 2 Parts Attached 468 | 6 11 2 31 1 . 5 20 40 4 23 6 11 9 3 23 34 12 15 18 54 9 10 9 8 75 29 Power 26 | 1 1 . 2 . . . 3 6 . 1 . . 1 . 2 1 . 2 . 2 . . . . 3 1 Engine 7 | 1 1 . 2 . . . . 1 . . . . 1 . 1 . . . . . . . . . . . Core 11 | . . . . . . . 3 5 . 1 . . . . 1 . . . . 1 . . . . . . Reactor 8 | . . . . . . . . . . . . . . . . 1 . 2 . 1 . . . . 3 1 Propulsion 50 | 2 2 . 4 1 . 1 4 5 1 5 1 . 1 . 2 2 1 2 . 3 . . 2 . 6 5 Treads 33 | 1 1 . 3 1 . 1 3 4 1 2 1 . . . . 2 1 1 . 2 . . 2 . 5 2 Leg 5 | . . . . . . . 1 . . . . . . . . . . 1 . 1 . . . . 1 1 Wheel 8 | 1 1 . 1 . . . . 1 . 2 . . 1 . 1 . . . . . . . . . . . Hover 2 | . . . . . . . . . . 1 . . . . 1 . . . . . . . . . . . Flight 2 | . . . . . . . . . . . . . . . . . . . . . . . . . . 2 Utility 225 | 1 4 . 6 . . . 7 15 2 4 4 6 4 3 14 23 5 4 13 32 8 6 2 6 45 11 Device 142 | . 2 . 1 . . . 3 5 2 . 3 4 1 3 12 19 3 1 7 25 6 5 1 5 28 6 Storage 16 | 1 1 . 3 . . . 1 3 . 2 . . 1 . . 1 . . . . . . . . 1 2 Processor 8 | . . . 2 . . . . 2 . . . . . . 1 . . . . 1 . . . . 1 1 Hackware 6 | . . . . . . . . . . 1 . . . . 1 . . . 1 2 . . . . . 1 Protection 53 | . 1 . . . . . 3 5 . 1 1 2 2 . . 3 2 3 5 4 2 1 1 1 15 1 Artifact . | . . . . . . . . . . . . . . . . . . . . . . . . . . . Weapon 167 | 2 4 2 19 . . 4 6 14 1 13 1 5 3 . 5 8 6 7 5 17 1 4 5 2 21 12 Energy Gun 39 | 1 2 1 1 . . . 1 3 . 7 1 . 1 . . . 1 3 . 4 . 1 3 . 9 . Energy Cannon 20 | . . . 9 . . 3 2 1 . . . . . . . . . . . . . . . . 2 3 Ballistic Gun 55 | 1 1 . . . . . 3 8 . . . . . . 2 5 5 4 3 9 . 2 1 2 5 4 Ballistic Cannon 16 | . . . 2 . . . . . 1 3 . 4 1 . 1 1 . . . . . . . . . 3 Launcher 16 | . 1 1 4 . . 1 . 1 . . . . 1 . . 2 . . . 2 . . . . 3 . Special Weapon 5 | . . . 3 . . . . . . . . . . . . . . . . . . 1 . . . 1 Impact Weapon . | . . . . . . . . . . . . . . . . . . . . . . . . . . . Slashing Weapon 16 | . . . . . . . . 1 . 3 . 1 . . 2 . . . 2 2 1 . 1 . 2 1 Piercing Weapon . | . . . . . . . . . . . . . . . . . . . . . . . . . . . Special Melee Weapon . | . . . . . . . . . . . . . . . . . . . . . . . . . . . Unidentified Prototypes 25 | . . . 1 . . . . 1 . . . . 2 . . 3 5 5 . . . . 3 . 3 2 Parts Lost 85 | . . 4 5 1 . 1 7 4 . 2 . 3 . . . 1 1 . 1 11 . . . . 25 19 Power 6 | . . . 1 . . . 1 1 . . . . . . . . . . . 1 . . . . 1 1 Propulsion 18 | . . . 2 1 . . 3 1 . 1 . . . . . . 1 . . 2 . . . . 4 3 Utility 19 | . . 1 . . . . . . . . . 1 . . . . . . . 2 . . . . 8 7 Weapon 42 | . . 3 2 . . 1 3 2 . 1 . 2 . . . 1 . . 1 6 . . . . 12 8 Highest Loss Streak 15 | . . 3 2 1 . 1 2 1 . 1 . 2 . . . 1 1 . 1 6 . . . . 14 15 Average Slot Usage (%) 96 | . 98 88 96 99 100 99 99 99 100 99 99 99 100 100 98 99 93 92 93 92 94 94 94 94 87 46 Engine 2 | . 14 14 10 11 11 11 1 . . . . . 6 7 3 . . . . . . . . . . . Core 3 | . . . . . . . 8 6 7 7 7 7 . . 2 3 . . . 2 5 5 5 5 3 . Treads 14 | . 14 14 10 13 22 22 23 14 15 13 7 15 15 15 8 9 17 20 20 15 17 17 17 17 11 3 Wheel 6 | . 14 14 21 19 11 11 . 6 7 7 7 7 7 7 11 13 2 . . . . . . . . . Device 5 | . 7 . 1 . . . 7 3 5 1 7 4 1 6 4 5 1 1 2 9 10 10 10 10 10 13 Storage 17 | . 14 14 21 22 22 22 18 15 15 15 15 15 21 23 20 20 20 20 20 17 17 17 17 17 14 3 Processor 12 | . . . 9 11 11 11 9 15 15 15 15 12 7 7 13 13 13 13 13 13 17 17 17 17 18 12 Protection 2 | . 5 10 . . . . 1 3 1 . . 5 7 . . . 4 4 2 1 . . . . 5 . Energy Gun 4 | . 20 20 . . . . 1 3 10 11 14 10 2 7 1 . . 3 . . 5 4 2 . 1 . Energy Cannon 2 | . . . 15 22 22 21 11 . . . . . . . . . . . . . . . . . . 2 Ballistic Gun 13 | . 7 . . . . . 14 26 15 15 15 8 7 7 10 24 25 22 25 20 14 13 17 23 17 . Ballistic Cannon 3 | . . . 3 . . . . . 3 1 . 7 14 15 9 1 . . . . . . . . . 1 Slashing Weapon 1 | . . . . . . . . . . 1 . 1 4 . 2 . . . . . 1 2 1 . . 1 Naked Turns . | . . . . . . . . . . . . . . . . . . . . . . . . . . . Heaviest Build 161 | 13 28 29 54 51 51 51 64 92 94 93 92 102 139 139 133 136 142 143 135 149 144 146 148 148 161 129 Greatest Support 145 | 16 20 20 24 24 12 40 60 40 16 50 22 12 16 16 50 60 140 140 140 140 126 126 134 134 145 38 Greatest Overweight (x) 28 | . 2 2 2 4 4 4 4 5 5 7 7 8 11 8 8 4 8 1 . 1 1 1 1 1 28 5 Average Overweight (x) 3 | . . 1 1 2 4 3 . 3 5 5 6 7 9 8 4 3 2 . . . 1 1 1 1 1 . Largest Inventory Capacity 28 | 6 10 10 16 16 16 16 18 20 20 20 20 20 28 28 28 28 28 28 28 28 28 28 28 28 28 20 Average Capacity 22 | 5 6 10 15 16 16 16 16 18 20 20 20 20 26 28 28 28 28 28 28 28 28 28 28 28 27 8 Most Carried 28 | 4 10 10 16 16 16 16 18 20 20 20 20 20 28 28 28 28 28 28 28 28 28 28 28 28 28 12 Average Carried 22 | 2 5 9 14 15 16 15 16 17 19 19 19 19 23 27 27 27 27 28 27 26 28 28 27 27 25 7 Final Capacity 28 | 6 10 10 16 16 16 16 18 20 20 20 20 20 28 28 28 28 28 28 28 28 28 28 28 28 12 4 Final Carried 28 | 4 10 10 16 16 16 16 18 20 20 19 20 19 28 28 28 28 28 28 27 28 28 28 28 28 12 4 Class Distribution -------------------- 29% | Hauler-Gunner 15% | Mutant 14% | Hauler-Skirmisher 9% | Scavenger-Skirmisher 9% | Scavenger-Gunner 5% | Scavenger-Assassin 4% | Gunner Dominant Class ---------------- Mutant | -10/Materials Mutant | -10/Mines Mutant | -9/Materials Mutant | -9/Mines Mutant | -9/Exiles Mutant | -8/Mines Gunner | -8/Materials Gunner | -7/Factory Hauler-Gunner | -7/Waste Hauler-Gunner | -7/Factory Hauler-Skirmisher | -7/Lower Caves Hauler-Gunner | -7/Lower Caves Hauler-Gunner | -7/Zion Hauler-Gunner | -6/Proximity Caves Hauler-Gunner | -6/Factory Commander-Skirmisher | -6/Extension Scavenger-Gunner | -6/Cetus Scavenger-Gunner | -6/Archives Scavenger-Gunner | -6/Hub_04(d) Scavenger-Skirmisher | -5/Factory Scavenger-Skirmisher | -5/Upper Caves Scavenger-Assassin | -5/Upper Caves Scavenger-Assassin | -5/Warlord Hauler-Skirmisher | -4/Proximity Caves Scavenger-Skirmisher | -4/Factory Mutant | -3/Research Resources | -11 -10 -10 -9 -9 -9 -8 -8 -7 -7 -7 -7 -7 -7 -6 -6 -6 -6 -6 -6 -5 -5 -5 -5 -4 -4 -3 ----------- Run | Scr Mat Min Mat Min Exi Min Mat Fac Was Fac Low Low Zio Pro Fac Ext Cet Arc Hub Fac Upp Upp War Pro Fac Res Matter Collected 11801 | 206 115 121 522 40 . 74 406 1090 103 405 180 215 94 36 403 692 194 166 245 1739 380 199 256 386 3138 396 Remotely . | . . . . . . . . . . . . . . . . . . . . . . . . . . . Salvage Created 14436 | . 150 105 1195 173 . 186 1198 1766 296 557 40 277 . . 179 345 56 . 573 1242 53 172 323 786 4464 300 Parts 610 | . 11 3 75 10 . 13 58 73 . 26 2 8 . . 11 14 3 . 28 45 3 6 14 21 180 6 Haulers Intercepted 6 | . . . 2 . . . 1 . . . . . . . . . . . 1 . . . . . 2 . Recyclers Shooed 7 | . . . 2 . . . . 1 . . . . . . . 1 . . . . . . . . 3 . Parts Field Recycled 6 | . . . . . . . . . . . . . . . . . . . . 6 . . . . . . Retrieved Matter 91 | . . . . . . . . . . . . . . . . . . . . 91 . . . . . . Parts Self-Destructed 133 | . . . . . . . . . . . . . 3 4 . . . . . . 9 8 81 28 . . Prevented 22 | . . . . . . . . . . . 2 . . . . . . . . . . . 20 . . . Kills | -11 -10 -10 -9 -9 -9 -8 -8 -7 -7 -7 -7 -7 -7 -6 -6 -6 -6 -6 -6 -5 -5 -5 -5 -4 -4 -3 ------- Run | Scr Mat Min Mat Min Exi Min Mat Fac Was Fac Low Low Zio Pro Fac Ext Cet Arc Hub Fac Upp Upp War Pro Fac Res Combat Hostiles Destroyed 246 | . 6 7 31 5 . 7 19 26 1 8 . 4 . . 3 7 1 . 9 25 1 3 5 10 63 5 Melee 1 | . . . . . . . . . . . . . . . . . . . . . . . . . 1 . Guns 145 | . 3 3 . . . . 8 22 1 7 . 4 . . 2 3 1 . 8 16 1 3 5 10 48 . Cannons 39 | . . . 14 5 . 3 8 . . 1 . . . . 1 2 . . . . . . . . . 5 AOE 60 | . 3 4 16 . . 4 3 4 . . . . . . . 2 . . 1 9 . . . . 14 . Classes Destroyed 20 | . 2 2 4 . . . 2 2 1 1 1 . . . . . . . 1 2 . . 1 . 1 . Worker 9 | . . . . . . . . . . . . . . . . . . . . 1 . . . . 8 . Builder 9 | . . . 2 . . . . 1 . . . . . . . 1 . . 1 1 . . . . 3 . Tunneler 1 | . . . . . . . . . . . . . . . . . . . . . . . . . 1 . Hauler 6 | . . . 2 . . . 1 . . . . . . . . . . . 1 . . . . . 2 . Recycler 16 | . . 1 4 1 . . 1 4 . 1 . . . . . . . . . 1 . . . . 3 . Minesweeper 1 | . . . . . . . . . . . 1 . . . . . . . . . . . . . . . Operator 3 | . . . . . . . . . . 1 . . . . 1 . . . . . . . . . 1 . Drone 1 | . . . . . . . . . . . . . . . . . . . 1 . . . . . . . Watcher 12 | . . . 4 . . . 1 1 . . . . . . . . . . 1 1 . . . . 4 . Swarmer 52 | . 3 . 14 5 . 4 . 4 . . . . . . . 2 . . 4 10 . 1 . . 5 . Saboteur 1 | . . . . . . . . . . . . . . . . . . . . 1 . . . . . . Grunt 116 | . 3 . 12 . . 3 13 14 . 2 . . . . 2 3 . . 2 7 . 1 4 6 40 4 Brawler 6 | . . . . . . . 1 1 . . . . . . . . . . . 1 . . . 2 1 . Duelist 4 | . . . . . . . . 1 . . . . . . . . . . . . . . . 1 1 1 Protector 1 | . . . . . . . . . . . . . . . . . . . . . . . 1 . . . Sentry 34 | . . . 5 . . . 5 5 . 3 . . . . 1 1 . . 3 3 . 1 . 1 6 . Hunter 6 | . . . . . . . 1 . . . . . . . . . . . . . 1 . . . 4 . Programmer 14 | . . . . . . . . 1 . 3 . . . . . . . . . 3 . . . . 7 . Compactor 1 | . . . . . . . . . 1 . . . . . . . . . . . . . . . . . Cetus Guard 1 | . . . . . . . . . . . . . . . . . 1 . . . . . . . . . Assembled 7 | . . 7 . . . . . . . . . . . . . . . . . . . . . . . . Thug 2 | . . . . . . . . . . . . 1 . . . 1 . . . . . . . . . . Savage 3 | . . . . . . . . . . . . 3 . . . . . . . . . . . . . . Best Kill Streak 17 | . 3 5 9 4 . 4 4 5 1 4 1 4 . . 2 2 1 . 4 11 1 3 3 7 17 4 Combat Bots Only 10 | . 3 4 7 3 . 4 3 4 1 3 . 4 . . 2 2 1 . 4 10 1 3 3 7 9 4 Max Kills in Single Turn 5 | . 2 2 4 1 . 4 3 2 1 1 1 1 . . 1 2 1 . 3 5 1 2 2 2 4 1 Gunslinging 2 | . . . . . . . . . . . . . . . . . . . 2 1 . . 1 1 1 . Exploded 5 | . 2 2 4 . . 4 1 1 . . . . . . . 2 . . 1 5 . . . . 4 . Melee 1 | . . . . . . . . . . . . . . . . . . . . . . . . . 1 . Uniques/NPCs Destroyed . | . . . . . . . . . . . . . . . . . . . . . . . . . . . Combat | -11 -10 -10 -9 -9 -9 -8 -8 -7 -7 -7 -7 -7 -7 -6 -6 -6 -6 -6 -6 -5 -5 -5 -5 -4 -4 -3 -------- Run | Scr Mat Min Mat Min Exi Min Mat Fac Was Fac Low Low Zio Pro Fac Ext Cet Arc Hub Fac Upp Upp War Pro Fac Res Damage Taken 22128 | . 184 544 1030 111 . 133 1152 1224 6 764 . 532 . . 473 757 174 25 316 2353 199 113 190 516 7201 4131 Core 3382 | . 15 138 160 34 . 10 59 70 2 69 . 50 . . 81 145 . . . 149 14 24 . 110 948 1304 Absorbed by Shields 178 | . . . . . . . . . . . . . . . 84 53 . . . 41 . . . . . . Reduced by Siege Mode 56 | . . . . . . . . . . . . . . . . . . . 3 6 . . . . 47 . Core Remaining (%) 63 | 100 . 38 . . . 49 89 . . . . . . 72 . . . . 73 . . . . 70 17 . Volleys Fired 561 | . 11 11 58 9 . 6 56 65 2 22 4 10 . . 10 21 4 1 11 67 5 8 12 18 134 16 Largest 5 | . 2 2 2 2 . 2 3 4 3 4 4 4 . . 4 4 4 4 4 4 3 3 4 4 4 5 Hottest 360 | . 80 80 163 126 . 126 211 193 113 166 166 200 . . 193 141 112 124 136 163 96 101 139 139 240 360 Shots Fired 1724 | . 21 18 96 18 . 9 149 236 6 78 14 34 . . 39 76 16 4 44 246 17 21 31 72 444 35 Gun 1436 | . 19 14 . . . . 83 229 4 71 14 24 . . 25 70 16 4 44 240 17 21 31 72 432 6 Cannon 245 | . . . 82 18 . 8 66 2 2 7 . 10 . . 14 5 . . . . . . . . 2 29 Launcher 38 | . 2 4 9 . . 1 . 5 . . . . . . . 1 . . . 6 . . . . 10 . Special 5 | . . . 5 . . . . . . . . . . . . . . . . . . . . . . . Kinetic 1296 | . 4 . 28 . . . 66 191 6 49 8 20 . . 34 75 16 4 44 229 16 21 31 72 349 33 Thermal 99 | . . . 5 . . . 37 2 . . . . . . . . . . . . . . . . 54 1 Explosive 35 | . 2 4 9 . . 1 . 5 . . . . . . . 1 . . . 6 . . . . 7 . Electromagnetic 252 | . 15 14 54 18 . 8 46 38 . 29 6 14 . . 5 . . . . 1 1 . . . 2 1 Entropic 32 | . . . . . . . . . . . . . . . . . . . . . . . . . 32 . Phasic 10 | . . . . . . . . . . . . . . . . . . . . 10 . . . . . . Robot Hit Streak 31 | . 8 7 17 3 . 6 26 28 6 17 7 12 . . 11 11 10 3 20 23 7 13 13 24 31 6 Robot Miss Streak 9 | . 2 2 5 2 . 1 2 4 2 9 3 4 . . 4 5 1 1 3 5 2 1 1 2 7 5 Penetration Max 1 | . . . . . . . . . . . . . . . 1 1 . . . 1 . 1 1 1 1 . Secondary Targets 34 | . 1 . . . . . . 3 . . . . . . . 1 1 . 2 8 . . 2 4 12 . Max Gunslinging Chain 2 | . 1 . . . . . . 1 . . . . . . . 1 1 . 2 2 . . 1 2 1 . Shots Hit Robots 1307 | . 14 13 69 10 . 6 117 193 5 55 12 29 . . 29 56 13 3 26 189 11 11 26 57 338 25 Core Hits 723 | . 10 24 59 6 . 9 44 111 3 42 5 18 . . 17 42 8 . 17 66 4 5 10 23 189 11 Critical Hits 111 | . . . 1 . . 1 7 . . 2 . 1 . . 1 3 . . 3 17 . 1 5 7 59 3 Critical Kills 41 | . . . . . . 1 . . . 1 . . . . . 3 . . 2 8 . 1 2 2 21 . Critical Parts Destroyed 69 | . . . 1 . . . 7 . . 1 . 1 . . 1 . . . 1 8 . . 3 5 38 3 Melee Attacks 46 | . . . . . . . . 2 . 6 . 5 . . 8 . . . 2 3 3 1 5 . 6 5 Impact . | . . . . . . . . . . . . . . . . . . . . . . . . . . . Slashing 46 | . . . . . . . . 2 . 6 . 5 . . 8 . . . 2 3 3 1 5 . 6 5 Piercing . | . . . . . . . . . . . . . . . . . . . . . . . . . . . Sneak Attacks 1 | . . . . . . . . 1 . . . . . . . . . . . . . . . . . . Combat Hostiles . | . . . . . . . . . . . . . . . . . . . . . . . . . . . Follow-up Attacks . | . . . . . . . . . . . . . . . . . . . . . . . . . . . Damage Inflicted 38583 | . 387 495 2825 295 . 349 2338 3476 149 1219 169 617 . . 444 1457 307 68 1126 4899 80 355 972 1515 14213 828 Guns 25204 | . 178 113 . . . . 965 2941 117 1015 169 425 . . 346 1259 307 68 609 3910 80 355 972 1515 9804 56 Cannons 4200 | . . . 1502 295 . 160 1162 . 32 94 . 83 . . 98 71 . . . . . . . . 30 673 Explosions 8805 | . 209 382 1323 . . 189 192 445 . 86 . 109 . . . 115 . . 516 989 . . . . 4250 . Melee 291 | . . . . . . . . 90 . . . . . . . . . . . . . . . . 102 99 Ramming 83 | . . . . . . . 19 . . 24 . . . . . 12 . . 1 . . . . . 27 . Kinetic 22492 | . 48 . 377 . . . 765 2591 149 863 118 241 . . 423 1330 307 68 609 3660 80 355 972 1515 7373 648 Thermal 2174 | . . . 104 . . . 706 . . . . 109 . . . . . . . . . . . . 1217 38 Explosive 5092 | . 209 382 1219 . . 189 . 369 . 86 . . . . . 115 . . . 989 . . . . 1534 . Electromagnetic 4290 | . 130 113 1125 295 . 160 848 426 . 246 51 267 . . 21 . . . 516 19 . . . . 30 43 Impact . | . . . . . . . . . . . . . . . . . . . . . . . . . . . Slashing 291 | . . . . . . . . 90 . . . . . . . . . . . . . . . . 102 99 Piercing . | . . . . . . . . . . . . . . . . . . . . . . . . . . . Entropic 3930 | . . . . . . . . . . . . . . . . . . . . . . . . . 3930 . Phasic 231 | . . . . . . . . . . . . . . . . . . . . 231 . . . . . . Highest Corruption 13 | . 1 1 1 1 1 1 . 4 4 2 2 1 . . . . . . . 6 6 6 6 . 13 . Average Corruption 3 | . 1 1 1 1 1 1 . 3 2 1 1 1 . . . . . . . 5 6 6 6 . 4 . Corruption Purged 7 | . . . . . . . . . 4 . 2 1 . . . . . . . . . . . . . . Effects 188 | . 2 . 2 4 1 4 . 19 5 19 4 1 . . . . . . . 9 45 28 3 . 42 . Message Errors 50 | . 1 . . 3 . 3 . 5 3 9 . . . . . . . . . 1 9 7 1 . 8 . Matter Fused 22 | . . . . . . . . 2 . . . . . . . . . . . 2 9 4 1 . 4 . Heat Flow Errors 25 | . . . . . . . . 3 . 5 2 . . . . . . . . 2 7 6 . . . . Energy Discharges 23 | . . . . . 1 1 . 1 2 3 1 . . . . . . . . 2 7 3 1 . 1 . Data Loss (minor) 25 | . 1 . 1 1 . . . 2 . 2 1 1 . . . . . . . . 9 4 . . 3 . Data Loss (major) 6 | . . . . . . . . . . . . . . . . . . . . 1 1 2 . . 2 . Misfires 6 | . . . . . . . . . . . . . . . . . . . . 1 2 1 . . 2 . Alerts 1 | . . . . . . . . . . . . . . . . . . . . . . . . . 1 . Targeting Errors 27 | . . . 1 . . . . 6 . . . . . . . . . . . . 1 1 . . 18 . Weapon Failures 3 | . . . . . . . . . . . . . . . . . . . . . . . . . 3 . Overload Shots 1 | . . . . . . . . . . . . . . . . . . . . . . . . . 1 . Overflow Damage 431 | . . 16 46 6 . . 13 68 . 61 . . . . . . . . 26 98 . . . . 94 3 Projectiles 66 | . . . 44 6 . . 13 . . . . . . . . . . . . . . . . . . 3 Explosions 305 | . . 16 2 . . . . 8 . 61 . . . . . . . . 26 98 . . . . 94 . Melee 60 | . . . . . . . . 60 . . . . . . . . . . . . . . . . . . Knockbacks 16 | . . . 4 . . . . . . 2 . . . . . 2 . . . . . . . . . 8 Impact 1 | . . . . . . . . . . 1 . . . . . . . . . . . . . . . . Kinetic 13 | . . . 4 . . . . . . 1 . . . . . 2 . . . . . . . . . 6 Secondary 2 | . . . . . . . . . . . . . . . . . . . . . . . . . . 2 Self-Inflicted Damage 946 | . 58 40 218 . . 12 40 . . . . 27 . . . . . . 100 19 . . . . 432 . Shots 19 | . 2 1 7 . . 1 1 . . . . 1 . . . . . . 1 1 . . . . 4 . Rammed 9 | . . . . . . . 3 . . 2 . . . . . 1 . . 1 . . . . . 2 . Targets Rammed 10 | . . . . . . . 3 . . 2 . . . . . 1 . . 1 . . . . . 3 . Kicked . | . . . . . . . . . . . . . . . . . . . . . . . . . . . Crushed 1 | . . . . . . . . . . . . . . . . . . . . . . . . . 1 . Highest Temperature 391 | . 54 108 267 218 . 230 369 369 40 350 255 391 . . 383 200 353 116 171 241 264 270 . 214 292 380 Average Temperature 92 | . 21 39 71 97 . 131 142 97 21 116 82 228 . . 120 73 38 52 62 106 102 95 . 81 74 171 Received Heat Transfer 4660 | . 39 . 333 . . 45 495 468 . 162 . 138 . . 93 242 . 9 47 438 . 27 21 102 1026 975 Effects 26 | . . . . . . 1 5 4 . 3 . . . . 1 . 4 . . 4 . 2 . . . 2 Shutdowns 1 | . . . . . . . . . . . . . . . . . . . . . . . . . . 1 Energy Bleed 5 | . . . . . . 1 1 1 . . . . . . . . . . . 1 . . . . . 1 Interference 16 | . . . . . . . 3 2 . 3 . . . . . . 3 . . 3 . 2 . . . . Matter Decay 3 | . . . . . . . 1 1 . . . . . . . . 1 . . . . . . . . . Short Circuit 1 | . . . . . . . . . . . . . . . 1 . . . . . . . . . . . Siege Activations 6 | . . . . . . . . . . . . . . . . . . . 1 2 . . . . 3 . Total Turns 79 | . . . . . . . . . . . . . . . . . . . 8 15 . . . . 56 . Longest Duration 23 | . . . . . . . . . . . . . . . . . . . 8 8 . . . . 23 . Robots Corrupted 4 | . . . 3 . . . . . . . . . . . . . . . 1 . . . . . . . Combat Hostiles 1 | . . . 1 . . . . . . . . . . . . . . . . . . . . . . . Parts Fried 19 | . . . 8 . . 2 5 1 . . . . . . . . . . 3 . . . . . . . Impact Corruptions . | . . . . . . . . . . . . . . . . . . . . . . . . . . . Robots Melted . | . . . . . . . . . . . . . . . . . . . . . . . . . . . Combat Hostiles . | . . . . . . . . . . . . . . . . . . . . . . . . . . . Parts Melted 4 | . . . . . . . . . . . . . . . . . . . 1 . . . . . 3 . Heat Transferred 3057 | . . . 100 . . . 1190 . . . . 100 . . . . . . . . . . . . 1642 25 Parts Sabotaged . | . . . . . . . . . . . . . . . . . . . . . . . . . . . Parts Stolen . | . . . . . . . . . . . . . . . . . . . . . . . . . . . Parts Stripped . | . . . . . . . . . . . . . . . . . . . . . . . . . . . Power Chain Reactions 6 | . . . 2 . . . 3 . . . . 1 . . . . . . . . . . . . . . Missiles Intercepted . | . . . . . . . . . . . . . . . . . . . . . . . . . . . Alert | -11 -10 -10 -9 -9 -9 -8 -8 -7 -7 -7 -7 -7 -7 -6 -6 -6 -6 -6 -6 -5 -5 -5 -5 -4 -4 -3 ------- Run | Scr Mat Min Mat Min Exi Min Mat Fac Was Fac Low Low Zio Pro Fac Ext Cet Arc Hub Fac Upp Upp War Pro Fac Res Peak Influence 1928 | . 189 34 682 398 . 107 323 724 305 893 . . . . 414 1241 833 475 957 1108 . . . . 1928 1722 Initial 1100 | . . 29 7 222 . . 23 144 253 73 . . . . . 202 644 333 160 468 . . . . . 1100 Average 427 | . 67 23 323 256 . 43 204 482 257 339 . . . . 262 514 761 442 469 853 . . . . 576 1200 Maximum Alert Level 5 | . . . 2 1 . . 1 3 1 3 . . . . 2 4 3 2 3 4 . . . . 5 5 Low Security (%) 31 | 100 100 100 35 47 . 100 45 1 15 48 . . . . 24 2 . . 13 . . . . . 42 . Level 1 27 | . . . 36 52 . . 54 32 84 12 . . . . 61 52 . 15 10 . . . . . 12 . Level 2 23 | . . . 28 . . . . 63 . 22 . . . . 13 20 17 84 71 27 . . . . 12 . Level 3 12 | . . . . . . . . 2 . 16 . . . . . 13 82 . 4 69 . . . . 10 19 Level 4 4 | . . . . . . . . . . . . . . . . 10 . . . 3 . . . . 10 73 Level 5 . | . . . . . . . . . . . . . . . . . . . . . . . . . . 6 High Security 1 | . . . . . . . . . . . . . . . . . . . . . . . . . 11 . Max Security . | . . . . . . . . . . . . . . . . . . . . . . . . . . . Squads Dispatched 71 | . 2 . 5 . . . 2 7 . 10 . . . . 3 6 . . 4 4 . . . 1 23 4 Investigation 19 | . 1 . 5 . . . 1 5 . 2 . . . . 1 1 . . 1 . . . . . . 2 Extermination 12 | . . . . . . . . 1 . 3 . . . . 1 . . . . 2 . . . . 4 1 Reinforcement 20 | . 1 . . . . . 1 . . 2 . . . . 1 4 . . 2 . . . . . 8 1 Assault 16 | . . . . . . . . 1 . . . . . . . 1 . . . 2 . . . 1 11 . Garrison 4 | . . . . . . . . . . 3 . . . . . . . . 1 . . . . . . . Intercept . | . . . . . . . . . . . . . . . . . . . . . . . . . . . Construction Impeded 6 | . . . . . . . . . . 1 . . . . 1 1 . . . . . . . . 2 1 Haulers Reinforced 6 | . . . . . . . . . . . . . . . . . . . . . . . . . 6 . Stealth | -11 -10 -10 -9 -9 -9 -8 -8 -7 -7 -7 -7 -7 -7 -6 -6 -6 -6 -6 -6 -5 -5 -5 -5 -4 -4 -3 --------- Run | Scr Mat Min Mat Min Exi Min Mat Fac Was Fac Low Low Zio Pro Fac Ext Cet Arc Hub Fac Upp Upp War Pro Fac Res Distress Signals 18 | . 1 . 4 . . . 1 1 . . . . . . 2 . 1 . 2 . . . . . 6 . Communications Jammed . | . . . . . . . . . . . . . . . . . . . . . . . . . . . Distress Signals . | . . . . . . . . . . . . . . . . . . . . . . . . . . . Times Spotted 525 | . 12 14 38 8 . 7 43 40 2 19 . 6 1 4 22 49 9 3 21 41 1 2 25 12 96 50 Peak Tracking Total 18 | . 3 9 6 4 . 4 5 5 1 4 . 4 1 3 6 7 5 2 4 9 1 3 12 8 16 18 Tactical Retreats 51 | . . 2 2 2 . . 10 3 . . . 2 . . . 1 . . . 7 . . 1 1 12 8 Traps | -11 -10 -10 -9 -9 -9 -8 -8 -7 -7 -7 -7 -7 -7 -6 -6 -6 -6 -6 -6 -5 -5 -5 -5 -4 -4 -3 ------- Run | Scr Mat Min Mat Min Exi Min Mat Fac Was Fac Low Low Zio Pro Fac Ext Cet Arc Hub Fac Upp Upp War Pro Fac Res Traps Triggered 11 | . 2 . 1 . . . 1 2 . 1 . . . . . 2 . . 1 1 . . . . . . Indirectly 1 | . . . . . . . . . . . . . . . . . . . 1 . . . . . . . Trap Hack Attempts . | . . . . . . . . . . . . . . . . . . . . . . . . . . . Triggered . | . . . . . . . . . . . . . . . . . . . . . . . . . . . Disarmed . | . . . . . . . . . . . . . . . . . . . . . . . . . . . Reprogrammed . | . . . . . . . . . . . . . . . . . . . . . . . . . . . Reused . | . . . . . . . . . . . . . . . . . . . . . . . . . . . Traps Extracted . | . . . . . . . . . . . . . . . . . . . . . . . . . . . Installed 26 | . . . . . . . . . . . 1 . . . . . . . 16 . . . . . 9 . Triggered 10 | . . . . . . . . . . . . . . . . . . . . . . . 10 . . . Machines | -11 -10 -10 -9 -9 -9 -8 -8 -7 -7 -7 -7 -7 -7 -6 -6 -6 -6 -6 -6 -5 -5 -5 -5 -4 -4 -3 ---------- Run | Scr Mat Min Mat Min Exi Min Mat Fac Was Fac Low Low Zio Pro Fac Ext Cet Arc Hub Fac Upp Upp War Pro Fac Res Machines Disabled 55 | . . . . . . . 4 2 . 17 . . . . 1 10 2 2 10 4 . . . 1 2 . Max in Single Turn 5 | . . . . . . . 1 2 . 5 . . . . 1 1 . 1 5 1 . . . 1 1 . Garrison Access 6 | . . . . . . . . 2 . 1 . . . . 1 . . . 1 . . . . . . 1 Network Hub 1 | . . . . . . . . . . . . . . . . . . . 1 . . . . . . . Energy Cycler 3 | . . . . . . . . . . . . . . . . 3 . . . . . . . . . . Machines Sabotaged . | . . . . . . . . . . . . . . . . . . . . . . . . . . . Garrisons Compromised . | . . . . . . . . . . . . . . . . . . . . . . . . . . . Overloaded Fab Kills . | . . . . . . . . . . . . . . . . . . . . . . . . . . . Fab Network Shutdowns 1 | . . . . . . . . . . 1 . . . . . . . . . . . . . . . . Hacking | -11 -10 -10 -9 -9 -9 -8 -8 -7 -7 -7 -7 -7 -7 -6 -6 -6 -6 -6 -6 -5 -5 -5 -5 -4 -4 -3 --------- Run | Scr Mat Min Mat Min Exi Min Mat Fac Was Fac Low Low Zio Pro Fac Ext Cet Arc Hub Fac Upp Upp War Pro Fac Res Machines Accessed 71 | . 7 1 10 2 1 . 5 11 . 12 . 2 1 . 2 . . . 1 5 1 1 4 . 4 1 Terminals 33 | . 6 1 7 1 . . 5 5 . 7 . 1 . . . . . . . . . . . . . . Fabricators 6 | . . . . . . . . 1 . 1 . . . . 1 . . . . 3 . . . . . . Repair Stations 5 | . . . . . . . . 2 . . . . . . . . . . . 1 . . . . 2 . Recycling Units 3 | . 1 . 2 . . . . . . . . . . . . . . . . . . . . . . . Scanalyzers 7 | . . . 1 . . . . 1 . 2 . . . . . . . . . 1 . . . . 2 . Garrison Access 7 | . . . . . . . . 2 . 2 . . . . 1 . . . 1 . . . . . . 1 Total Hacks 190 | . 24 3 30 3 1 . 11 23 . 35 . 2 4 . 3 . . . 3 20 1 1 9 . 16 1 Successful 109 | . 13 1 17 3 1 . 6 13 . 13 . 2 4 . 1 . . . 1 10 1 1 9 . 12 1 Failed 81 | . 11 2 13 . . . 5 10 . 22 . . . . 2 . . . 2 10 . . . . 4 . Catastrophic 11 | . 3 . 2 . . . . 1 . 3 . . . . . . . . 1 . . . . . 1 . Database Lockouts . | . . . . . . . . . . . . . . . . . . . . . . . . . . . Manual 198 | . 12 4 14 3 . . 6 12 . 13 . . . . 35 39 7 . 29 10 . . 1 . 7 6 Terminals 95 | . 22 3 24 2 . . 11 11 . 21 . 1 . . . . . . . . . . . . . . Fabricators 19 | . . . . . . . . 5 . 2 . . . . 2 . . . . 10 . . . . . . Repair Stations 13 | . . . . . . . . 4 . . . . . . . . . . . 3 . . . . 6 . Recycling Units 5 | . 2 . 3 . . . . . . . . . . . . . . . . . . . . . . . Scanalyzers 29 | . . . 3 . . . . 1 . 8 . . . . . . . . . 7 . . . . 10 . Garrison Access 11 | . . . . . . . . 2 . 4 . . . . 1 . . . 3 . . . . . . 1 Terminal Hacks 44 | . 7 1 7 3 1 . 3 1 . 4 . 2 4 . . . . . . . 1 1 9 . . . Record 10 | . . . . . 1 . . . . . . 1 . . . . . . . . . . 8 . . . Part Schematic 6 | . 1 . . . . . . . . 1 . . 4 . . . . . . . . . . . . . Robot Analysis 3 | . . 1 . 2 . . . . . . . . . . . . . . . . . . . . . . Prototype ID Bank 6 | . 2 . 2 . . . 1 . . 1 . . . . . . . . . . . . . . . . Open Door 5 | . . . . 1 . . . . . . . 1 . . . . . . . . 1 1 1 . . . Branch Access Points 1 | . . . 1 . . . . . . . . . . . . . . . . . . . . . . . Terminal Index 1 | . . . 1 . . . . . . . . . . . . . . . . . . . . . . . Alert Level 2 | . 1 . . . . . 1 . . . . . . . . . . . . . . . . . . . Unreport Threat 3 | . 1 . . . . . 1 . . 1 . . . . . . . . . . . . . . . . Locate Traps 3 | . 2 . 1 . . . . . . . . . . . . . . . . . . . . . . . Zone Layout 4 | . . . 2 . . . . 1 . 1 . . . . . . . . . . . . . . . . Fabricator Hacks 7 | . . . . . . . . 2 . 1 . . . . . . . . . 4 . . . . . . Network Status 1 | . . . . . . . . . . . . . . . . . . . . 1 . . . . . . Load Schematic 3 | . . . . . . . . 1 . . . . . . . . . . . 2 . . . . . . Build 3 | . . . . . . . . 1 . 1 . . . . . . . . . 1 . . . . . . Repair Station Hacks 9 | . . . . . . . . 1 . . . . . . . . . . . 2 . . . . 6 . Scan Component 5 | . . . . . . . . 1 . . . . . . . . . . . 1 . . . . 3 . Repair 4 | . . . . . . . . . . . . . . . . . . . . 1 . . . . 3 . Recycling Unit Hacks 2 | . 1 . 1 . . . . . . . . . . . . . . . . . . . . . . . Report Inventory 2 | . 1 . 1 . . . . . . . . . . . . . . . . . . . . . . . Scanalyzer 17 | . . . 2 . . . . . . 6 . . . . . . . . . 3 . . . . 6 . Insert Component 10 | . . . 1 . . . . . . 3 . . . . . . . . . 1 . . . . 5 . Analyze 7 | . . . 1 . . . . . . 3 . . . . . . . . . 2 . . . . 1 . Garrison Access Hacks 2 | . . . . . . . . 1 . . . . . . 1 . . . . . . . . . . . Seal Access 2 | . . . . . . . . 1 . . . . . . 1 . . . . . . . . . . . Unauthorized Hacks 28 | . 5 . 7 . . . 3 8 . 2 . . . . . . . . 1 1 . . . . . 1 Terminals 16 | . 4 . 4 . . . 3 4 . 1 . . . . . . . . . . . . . . . . Track 5 | . 2 . 1 . . . 1 1 . . . . . . . . . . . . . . . . . . Assimilate 2 | . . . 1 . . . . 1 . . . . . . . . . . . . . . . . . . Botnet 8 | . 2 . 2 . . . 1 2 . 1 . . . . . . . . . . . . . . . . Disrupt 1 | . . . . . . . 1 . . . . . . . . . . . . . . . . . . . Fabricators 3 | . . . . . . . . 2 . . . . . . . . . . . 1 . . . . . . Prioritize 1 | . . . . . . . . 1 . . . . . . . . . . . . . . . . . . Siphon 2 | . . . . . . . . 1 . . . . . . . . . . . 1 . . . . . . Repair Stations . | . . . . . . . . . . . . . . . . . . . . . . . . . . . Recycling Units 3 | . 1 . 2 . . . . . . . . . . . . . . . . . . . . . . . Tunnel 3 | . 1 . 2 . . . . . . . . . . . . . . . . . . . . . . . Scanalyzers 2 | . . . 1 . . . . 1 . . . . . . . . . . . . . . . . . . Extract 2 | . . . 1 . . . . 1 . . . . . . . . . . . . . . . . . . Garrison Access 4 | . . . . . . . . 1 . 1 . . . . . . . . 1 . . . . . . 1 Jam 4 | . . . . . . . . 1 . 1 . . . . . . . . 1 . . . . . . 1 Data Cores Recovered 2 | . . . . . . . . . . 1 . . . . 1 . . . . . . . . . . . Used . | . . . . . . . . . . . . . . . . . . . . . . . . . . . Hacking Detections 49 | . 6 1 8 1 . . 5 8 . 11 . . . . 1 . . . 1 5 . . . . 2 . Full Trace Events 4 | . . . 1 . . . . 2 . 1 . . . . . . . . . . . . . . . . Feedback Events 2 | . . . 1 . . . . 1 . . . . . . . . . . . . . . . . . . Corruption 2 | . . . 1 . . . . 1 . . . . . . . . . . . . . . . . . . Feedback Blocked . | . . . . . . . . . . . . . . . . . . . . . . . . . . . Robot Schematics Acquired 8 | . . . . . . . . . . . . . . . . 8 . . . . . . . . . . Robots Built . | . . . . . . . . . . . . . . . . . . . . . . . . . . . Matter . | . . . . . . . . . . . . . . . . . . . . . . . . . . . Time . | . . . . . . . . . . . . . . . . . . . . . . . . . . . Total Robot Build Rating . | . . . . . . . . . . . . . . . . . . . . . . . . . . . Part Schematics Acquired 105 | . 1 . 9 . . . . 4 . 4 . . 4 . 34 15 . . 32 1 . . . . 1 . Parts Built 3 | . . . . . . . . 1 . 1 . . . . . . . . . 1 . . . . . . Matter 599 | . . . . . . . . 102 . 212 . . . . . . . . . 285 . . . . . . Time 154 | . . . . . . . . 51 . 53 . . . . . . . . . 50 . . . . . . Total Part Build Rating 12 | . . . . . . . . 1 . 6 . . . . . . . . . 5 . . . . . . Parts Repaired 4 | . . . . . . . . . . . . . . . . . . . . 1 . . . . 3 . Time 249 | . . . . . . . . . . . . . . . . . . . . 49 . . . . 200 . Parts Recycled . | . . . . . . . . . . . . . . . . . . . . . . . . . . . Recycled Matter . | . . . . . . . . . . . . . . . . . . . . . . . . . . . Retrieved Matter . | . . . . . . . . . . . . . . . . . . . . . . . . . . . Retrieved Components . | . . . . . . . . . . . . . . . . . . . . . . . . . . . Parts Scanalyzed 6 | . . . 1 . . . . . . 3 . . . . . . . . . 1 . . . . 1 . Part Schematics Acquired 6 | . . . 1 . . . . . . 3 . . . . . . . . . 1 . . . . 1 . Parts Damaged . | . . . . . . . . . . . . . . . . . . . . . . . . . . . Bothacking | -11 -10 -10 -9 -9 -9 -8 -8 -7 -7 -7 -7 -7 -7 -6 -6 -6 -6 -6 -6 -5 -5 -5 -5 -4 -4 -3 ------------ Run | Scr Mat Min Mat Min Exi Min Mat Fac Was Fac Low Low Zio Pro Fac Ext Cet Arc Hub Fac Upp Upp War Pro Fac Res Used RIF Installer . | . . . . . . . . . . . . . . . . . . . . . . . . . . . Robots Hacked . | . . . . . . . . . . . . . . . . . . . . . . . . . . . Non-combat . | . . . . . . . . . . . . . . . . . . . . . . . . . . . Combat . | . . . . . . . . . . . . . . . . . . . . . . . . . . . Robot Hacks Applied . | . . . . . . . . . . . . . . . . . . . . . . . . . . . Relay Couplers Released 2 | . . . . . . . . . . . . . . . 2 . . . . . . . . . . . Machine Destruction 2 | . . . . . . . . . . . . . . . 2 . . . . . . . . . . . Robots Rewired 22 | . . . . . . . 2 2 . . . . . . . 16 . . . . . . . 2 . . Allies Hacked . | . . . . . . . . . . . . . . . . . . . . . . . . . . . Hacks Repelled . | . . . . . . . . . . . . . . . . . . . . . . . . . . . Allies | -11 -10 -10 -9 -9 -9 -8 -8 -7 -7 -7 -7 -7 -7 -6 -6 -6 -6 -6 -6 -5 -5 -5 -5 -4 -4 -3 -------- Run | Scr Mat Min Mat Min Exi Min Mat Fac Was Fac Low Low Zio Pro Fac Ext Cet Arc Hub Fac Upp Upp War Pro Fac Res Total Allies 84 | . . . 1 . . . 2 3 18 . . . 10 . 7 23 5 . 4 4 . . . 2 2 3 Largest Group 18 | . . . 1 . . . 1 1 18 11 . . 10 10 10 13 8 5 6 2 2 . . 2 2 2 Highest-Rated Group 468 | . . . 10 . . . 29 32 456 336 . . 303 303 439 401 468 342 254 170 170 . . 98 140 140 Highest-Rated Ally 85 | . . . 10 . . . 29 32 35 35 . . 39 39 70 85 85 85 85 85 85 . . 49 70 70 Zionite Dispatches 16 | . . . . . . . . . . . . . . . 3 4 2 . 2 2 . . . . 1 2 Heavy 4 | . . . . . . . . . . . . . . . . 1 1 . . 2 . . . . . . Light 2 | . . . . . . . . . . . . . . . 1 . 1 . . . . . . . . . Recon 2 | . . . . . . . . . . . . . . . . 1 . . 1 . . . . . . . Fire 1 | . . . . . . . . . . . . . . . . . . . 1 . . . . . . . Hacker 2 | . . . . . . . . . . . . . . . . . . . . . . . . . 1 1 Demo 1 | . . . . . . . . . . . . . . . 1 . . . . . . . . . . . Kinetic Resupply 1 | . . . . . . . . . . . . . . . . . . . . . . . . . . 1 Trap Resupply 1 | . . . . . . . . . . . . . . . . 1 . . . . . . . . . . Infowar Resupply 1 | . . . . . . . . . . . . . . . . 1 . . . . . . . . . . Hover Resupply 1 | . . . . . . . . . . . . . . . 1 . . . . . . . . . . . Total Orders 41 | . . . . . . . . . . . . . . . 4 7 . . 7 13 . . . . 7 3 ROAM 1 | . . . . . . . . . . . . . . . . . . . . . . . . . 1 . FOLLOW 2 | . . . . . . . . . . . . . . . . . . . . 1 . . . . 1 . DROP 3 | . . . . . . . . . . . . . . . 1 1 . . . . . . . . . 1 EXPLORE 23 | . . . . . . . . . . . . . . . . 3 . . 6 9 . . . . 3 2 RETURN 12 | . . . . . . . . . . . . . . . 3 3 . . 1 3 . . . . 2 . Ally Attacks 697 | . . . . . . . 8 4 146 50 . . 2 20 69 215 37 23 45 19 4 . . 18 32 5 Total Damage 20096 | . . . . . . . 82 156 4809 944 . . 22 780 2155 5386 666 698 1054 936 190 . . 646 839 733 Kills 138 | . . . . . . . . 2 12 8 . . . 8 21 39 9 4 13 4 1 . . 3 11 3 Allies Corrupted 1 | . . . . . . . . . . . . . . . . . . . 1 . . . . . . . Allies Melted 1 | . . . . . . . . 1 . . . . . . . . . . . . . . . . . . Intel | -11 -10 -10 -9 -9 -9 -8 -8 -7 -7 -7 -7 -7 -7 -6 -6 -6 -6 -6 -6 -5 -5 -5 -5 -4 -4 -3 ------- Run | Scr Mat Min Mat Min Exi Min Mat Fac Was Fac Low Low Zio Pro Fac Ext Cet Arc Hub Fac Upp Upp War Pro Fac Res Robot Analysis Total 3 | . . 1 . 2 . . . . . . . . . . . . . . . . . . . . . . Derelict Logs Recovered 12 | . . 1 . . . . . . . . 2 . 2 3 . . . . . . 1 2 . 1 . . Drone Launches 43 | . . . . . . . . . . . . . . . 3 4 . . 7 10 . . . . 17 2 Drone Recoveries 38 | . . . . . . . . . . . . . . . 3 4 . . 5 9 . . . . 15 2 Zionite Intel Received 20 | . . . . . . . . . . . . . . . 7 6 . . 5 1 . . . . 1 . Main Access 3 | . . . . . . . . . . . . . . . 1 . . . . 1 . . . . 1 . Branch Access 1 | . . . . . . . . . . . . . . . 1 . . . . . . . . . . . Guard Positions 1 | . . . . . . . . . . . . . . . . . . . 1 . . . . . . . Component Stockpiles 1 | . . . . . . . . . . . . . . . 1 . . . . . . . . . . . Prototype Stockpiles 1 | . . . . . . . . . . . . . . . . 1 . . . . . . . . . . Component Schematics 3 | . . . . . . . . . . . . . . . 1 1 . . 1 . . . . . . . Prototype Schematics 4 | . . . . . . . . . . . . . . . 2 . . . 2 . . . . . . . Unaware Schematics 2 | . . . . . . . . . . . . . . . . 2 . . . . . . . . . . Unaware Analyses 2 | . . . . . . . . . . . . . . . 1 1 . . . . . . . . . . Active Garrisons 1 | . . . . . . . . . . . . . . . . . . . 1 . . . . . . . Depthwide Sectors/-1 1 | . . . . . . . . . . . . . . . . 1 . . . . . . . . . . Exploration | -11 -10 -10 -9 -9 -9 -8 -8 -7 -7 -7 -7 -7 -7 -6 -6 -6 -6 -6 -6 -5 -5 -5 -5 -4 -4 -3 ------------- Run | Scr Mat Min Mat Min Exi Min Mat Fac Was Fac Low Low Zio Pro Fac Ext Cet Arc Hub Fac Upp Upp War Pro Fac Res Turns Passed 28466 | 63 624 294 1227 758 271 713 906 1969 475 2002 1864 1696 2031 1294 1064 1659 248 165 691 1371 1409 967 1327 1188 1786 404 Spaces Moved 15486 | 51 519 237 836 616 209 520 334 1038 213 1169 860 976 1092 720 643 910 115 77 315 548 749 510 686 591 591 361 Core 152 | 1 . . . . . . . . . . . . . . . . . . . . . . . . 2 149 Treads 4860 | . 46 4 38 . . 1 315 160 . 43 5 . . . 4 37 84 77 315 548 749 510 686 591 589 58 Legs . | . . . . . . . . . . . . . . . . . . . . . . . . . . . Wheels 10320 | 50 473 233 798 616 209 519 19 878 213 1126 855 976 1092 720 639 873 31 . . . . . . . . . Hover . | . . . . . . . . . . . . . . . . . . . . . . . . . . . Flight 154 | . . . . . . . . . . . . . . . . . . . . . . . . . . 154 Fastest Speed 32 | 50 100 100 90 110 130 130 130 140 150 150 160 160 170 170 130 130 130 160 160 160 180 180 180 186 160 32 Average Speed 153 | 99 106 108 111 114 130 130 172 147 150 153 160 167 181 170 136 133 171 165 160 174 180 180 182 186 190 73 Slowest Speed 1450 | 100 160 180 200 130 130 185 230 220 150 205 225 170 200 170 240 240 180 180 160 180 180 180 186 186 1450 260 Overloaded Moves 1 | . . . . . . . . . . . . . . . . . . . . . . . . . . 1 Propulsion Burnouts . | . . . . . . . . . . . . . . . . . . . . . . . . . . . Robots Hopped . | . . . . . . . . . . . . . . . . . . . . . . . . . . . Cave-ins Triggered 2 | . . . . . . . . . . . . . . . . . . . . . . . . . 2 . Exploration Rate (%) 64 | 3 92 60 65 98 63 96 41 29 97 35 97 97 88 81 20 89 60 71 66 26 87 79 75 88 18 15 Regions Visited 26 Branch Regions 16 Pre-discovered Areas 12 | . 1 . 2 . . . . . . . . . 3 1 . 5 . . . . . . . . . . Known Exits Taken 14 | . . 1 1 . . 1 . . . 1 1 . . 1 1 . . . 1 1 1 1 1 1 1 . Unknown Exits Taken 10 | 1 1 . . 1 1 . 1 . . . . 1 1 . . 1 1 1 . . . . . . . . Scrap Searched 31 | . . . . 1 . 3 . . . . 8 1 4 5 . . . . . . 2 2 . 5 . . Spaces Dug 46 | . . . 5 . . . . 1 . 5 . 5 . . 8 . . . 2 5 3 2 5 . 4 1 Terrain Destroyed 813 | . 16 25 71 . . 21 16 24 2 57 . 23 . . 13 15 . 1 173 72 4 2 5 20 245 8 Melee 36 | . . . . . . . . 1 . 5 . 5 . . 8 . . . 2 3 3 1 5 . 2 1 Projectile 257 | . . . 5 . . . 2 . 2 . . 9 . . 5 3 . 1 14 50 1 1 . 20 137 7 AOE 520 | . 16 25 66 . . 21 14 23 . 52 . 9 . . . 12 . . 157 19 . . . . 106 . Terrain Rammed . | . . . . . . . . . . . . . . . . . . . . . . . . . . . Walls Destroyed . | . . . . . . . . . . . . . . . . . . . . . . . . . . . Machines Disabled . | . . . . . . . . . . . . . . . . . . . . . . . . . . . Actions | -11 -10 -10 -9 -9 -9 -8 -8 -7 -7 -7 -7 -7 -7 -6 -6 -6 -6 -6 -6 -5 -5 -5 -5 -4 -4 -3 --------- Run | Scr Mat Min Mat Min Exi Min Mat Fac Was Fac Low Low Zio Pro Fac Ext Cet Arc Hub Fac Upp Upp War Pro Fac Res Total 18820 | 60 575 255 1021 652 208 550 548 1322 363 1313 1334 1007 1141 790 790 1292 157 113 470 781 790 538 732 634 927 457 Wait 1672 | . 14 5 59 18 . 11 90 136 141 72 459 4 20 63 84 174 13 8 81 87 25 9 . 1 72 26 Move 15462 | 50 518 236 835 615 208 519 333 1038 212 1168 859 975 1091 719 642 910 114 76 314 547 748 509 685 590 590 361 Hop . | . . . . . . . . . . . . . . . . . . . . . . . . . . . Pick Up 184 | 4 10 1 23 5 . 4 15 15 2 7 2 1 15 2 9 7 3 . 13 15 . . 6 1 16 8 Fast Attach 88 | 6 3 . 4 . . . 4 5 . 1 2 1 . 1 5 2 5 10 . 4 . . 2 4 8 21 Attach 76 | . . 1 7 1 . 1 6 7 . 2 . 3 . . 2 1 . . 3 12 . . . . 24 6 Detach 21 | . . . 1 . . . . 1 . 1 . 1 . . 3 . 2 . 1 2 . . 1 . 5 3 Swap 304 | . 8 1 20 . . 4 10 28 4 20 4 7 9 2 16 31 7 5 15 38 9 10 7 4 43 2 Drop 205 | . 11 . 14 4 . 5 13 23 2 12 3 . 6 3 11 11 9 13 12 6 . 1 14 6 17 9 Fire 561 | . 11 11 58 9 . 6 56 65 2 22 4 10 . . 10 21 4 1 11 67 5 8 12 18 134 16 Melee 46 | . . . . . . . . 2 . 6 . 5 . . 8 . . . 2 3 3 1 5 . 6 5 Ram . | . . . . . . . . . . . . . . . . . . . . . . . . . . . Kick . | . . . . . . . . . . . . . . . . . . . . . . . . . . . Crush 9 | . . . . . . . 3 . . 2 . . . . . . . . 1 . . . . . 3 . Escape Stasis 8 | . . . . . . . . . . . . . . . . 8 . . . . . . . . . . Rewire 157 | . . . . . . . 18 2 . . . . . . . 127 . . . . . . . 10 . . Trap 26 | . . . . . . . . . . . 1 . . . . . . . 16 . . . . . 9 . Miscellaneous 1 | . . . . . . . . . . . . . . . . . . . 1 . . . . . . . Route ------- -11/Scrapyard -10/Materials (discovered 5 exits: *Mat x3 / *Min x2) -10/Mines -9/Materials (discovered 4 exits: *Mat x3 / *Min) -9/Mines (discovered 4 exits: *Mat x2 / *Exi / *Zio) -9/Exiles -8/Mines (discovered 2 exits: *Mat x2) -8/Materials -7/Factory (discovered 3 exits: *Fac / *Sto / *Low) -7/Waste -7/Factory (discovered 3 exits: *Fac x2 / *Low) -7/Lower Caves -7/Lower Caves (discovered 2 exits: *Fac / *Zio) -7/Zion -6/Proximity Caves -6/Factory (discovered 8 exits: Fac x4 / *Low x2 / *Ext x2) -6/Extension (discovered 2 exits: *Fac / *Cet) -6/Cetus -6/Archives (discovered 2 exits: *Fac / *Hub) -6/Hub_04(d) (discovered 4 exits: *Fac x4) -5/Factory (discovered 5 exits: *Fac x4 / *Upp) -5/Upper Caves -5/Upper Caves (discovered 2 exits: *Fac / *War) -5/Warlord -4/Proximity Caves -4/Factory (discovered 4 exits: *Res x4) -3/Research (discovered 2 exits: Arm / Tes) History --------- Turn | Location | Event 14 | -11/Scrapyard | Discovered new exit (range 16) 64 | -11/Scrapyard | Entered Materials 193 | -10/Materials | Discovered new exit (range 15) 246 | -10/Materials | Discovered new exit (range 8) 274 | -10/Materials | Discovered new exit (range 13) 324 | -10/Materials | Build established: Mutant 343 | -10/Materials | Discovered new exit (range 11) 480 | -10/Materials | Discovered new exit (range 16) 688 | -10/Materials | Entered Mines 819 | -10/Mines | Assembled infested the area 833 | -10/Mines | Received a Rocket Launcher from a helpful Derelict 846 | -10/Mines | Identified exit to Materials 856 | -10/Mines | A weapon hastily lodged in a ceiling crevice suddenly fell to the ground 917 | -10/Mines | Core integrity fell below 50% 945 | -10/Mines | Lost 3 parts (1u2w) 982 | -10/Mines | Entered Materials 982 | -9/Materials | Evolved 2 slots: Propulsion x1, Utility x1 1166 | -9/Materials | Discovered new exit (range 15) 1185 | -9/Materials | Identified exit to Materials 1511 | -9/Materials | Discovered exit to Materials (range 12) 1806 | -9/Materials | Identified exit to Mines 1851 | -9/Materials | Discovered exit to Materials (range 5) 1905 | -9/Materials | Destroyed 7 combat bots 2209 | -9/Materials | Entered Mines 2210 | -9/Mines | A Derelict revealed a hidden shortcut to a safe place 2292 | -9/Mines | Discovered exit to Materials (range 10) 2313 | -9/Mines | Discovered exit to Materials (range 10) 2669 | -9/Mines | Deemed a non-threat by the Exiles lab entrance 2669 | -9/Mines | Discovered new exit (range 5) 2771 | -9/Mines | Met a Derelict who couldn't figure out how to use a Trap Extractor 2967 | -9/Mines | Entered Exiles 2967 | -9/Exiles | Found Exiles lab abandoned 3224 | -9/Exiles | Discovered new exit (range 12) 3238 | -9/Exiles | Entered Mines 3410 | -8/Mines | Core integrity fell below 50% 3695 | -8/Mines | Discovered exit to Materials (range 9) 3932 | -8/Mines | Discovered exit to Materials (range 10) 3951 | -8/Mines | Entered Materials 3951 | -8/Materials | Evolved 2 slots: Utility x1, Weapon x1 4727 | -8/Materials | Discovered new exit (range 14) 4857 | -8/Materials | Entered Factory 4857 | -7/Factory | Evolved 2 slots: Utility x1, Weapon x1 5149 | -7/Factory | Build established: Skirmisher 6057 | -7/Factory | First assault squad dispatched 6436 | -7/Factory | Discovered new exit (range 5) 6457 | -7/Factory | Identified exit to Storage 6493 | -7/Factory | Build established: Gunner 6521 | -7/Factory | Discovered new exit (range 11) 6535 | -7/Factory | Identified exit to Factory 6678 | -7/Factory | Fabricated Hcp. Storage Unit (x1) 6759 | -7/Factory | Discovered new exit (range 8) 6816 | -7/Factory | Identified exit to Lower Caves 6826 | -7/Factory | Sucked down chute 6826 | -7/Factory | Entered Waste 6846 | -7/Waste | Spotted C-40 Crusher 6863 | -7/Waste | Warlord forces began an assault 6871 | -7/Waste | Allies destroyed C-40 Crusher 6948 | -7/Waste | Allies destroyed C-40 Crusher 6953 | -7/Waste | Spotted C-40 Crusher 6956 | -7/Waste | Allies destroyed C-40 Crusher 6962 | -7/Waste | Spotted C-40 Crusher 6962 | -7/Waste | Allies destroyed C-40 Crusher 6963 | -7/Waste | Spotted C-40 Crusher 6964 | -7/Waste | Allies destroyed C-40 Crusher 6975 | -7/Waste | Build established: Hauler-Gunner 7038 | -7/Waste | Spotted C-40 Crusher 7049 | -7/Waste | Destroyed C-40 Crusher 7142 | -7/Waste | Discovered new exit (range 12) 7189 | -7/Waste | Identified exit to Factory 7301 | -7/Waste | Entered Factory 7301 | -7/Factory | Accompanied by 11 allies 7486 | -7/Factory | Build established: Hauler-Skirmisher 7927 | -7/Factory | Build established: Hauler-Gunner 7951 | -7/Factory | Discovered exit to Factory (range 13) 8389 | -7/Factory | Discovered exit to Factory (range 14) 8421 | -7/Factory | Fabricated Adv. Cooling System (x1) 8514 | -7/Factory | Local fabrication network quarantined 9129 | -7/Factory | Discovered exit to Lower Caves (range 4) 9303 | -7/Factory | Entered Lower Caves 10010 | -7/Lower Caves | Learned Factory terminal intel 10019 | -7/Lower Caves | Learned Factory stockpile data 10183 | -7/Lower Caves | Build established: Hauler-Skirmisher 10252 | -7/Lower Caves | Encountered a Warlord checkpoint 11090 | -7/Lower Caves | Discovered new exit (range 5) 11164 | -7/Lower Caves | Identified exit to Lower Caves 11167 | -7/Lower Caves | Entered another Lower Caves area 11579 | -7/Lower Caves | Spotted B-75 Beast 11912 | -7/Lower Caves | Build established: Hauler-Gunner 11943 | -7/Lower Caves | Discovered exit to Factory (range 9) 12228 | -7/Lower Caves | Ambushed by wild Derelicts 12552 | -7/Lower Caves | Discovered new exit (range 4) 12863 | -7/Lower Caves | Entered Zion 13034 | -7/Zion | Discovered new exit (range 12) 13121 | -7/Zion | Learned location of Armory (-3) 13166 | -7/Zion | Learned Factory recycling unit intel 13267 | -7/Zion | Learned location of Quarantine (-2) 13446 | -7/Zion | Given the Hacking Drone Bay 13454 | -7/Zion | Found Prototype Device 13493 | -7/Zion | Learned location of Data Miner (-6) 13503 | -7/Zion | Found CR-A16's Pointy Stick 13594 | -7/Zion | Learned 12 Factory zone layouts 13967 | -7/Zion | Gained Derelict followers 14119 | -7/Zion | Visited the Megawrench Repair Shop 14124 | -7/Zion | Megawrench repaired 11 parts 14231 | -7/Zion | Found Prototype Processor 14233 | -7/Zion | Found Prototype Hackware 14237 | -7/Zion | Found Prototype Processor 14239 | -7/Zion | Found Prototype Processor 14245 | -7/Zion | Found Prototype Processor 14253 | -7/Zion | Found Prototype Processor 14257 | -7/Zion | Found Prototype Processor 14333 | -7/Zion | Identified Hacking Drone Bay 14592 | -7/Zion | Imprinted 14594 | -7/Zion | Declared Zion's savior 14894 | -7/Zion | Entered Proximity Caves 14894 | -6/Proximity Caves | Accompanied by 10 allies 15246 | -6/Proximity Caves | Learned location of 1 exit from Factory 15796 | -6/Proximity Caves | Identified Spectral Analyzer (x2) 15825 | -6/Proximity Caves | Identified Exp. Targeting Computer 15831 | -6/Proximity Caves | Identified Exp. Melee Analysis Suite (x2) 15849 | -6/Proximity Caves | Identified Exp. Armor Integrity Analyzer 15855 | -6/Proximity Caves | Identified Exp. Hacking Suite 16188 | -6/Proximity Caves | Entered Factory 16188 | -6/Factory | Accompanied by 6 allies 16188 | -6/Factory | Evolved 2 slots: Propulsion x1, Utility x1 16189 | -6/Factory | Identified exit to Extension 16190 | -6/Factory | Identified exit to Factory 16192 | -6/Factory | Loaded intel: 22 terminal locations 16193 | -6/Factory | Loaded intel: 6 recycling unit locations 16312 | -6/Factory | Retrieved Zion intel report: Prototype Schematics 16360 | -6/Factory | Retrieved Zion intel report: Unaware Analyses 16361 | -6/Factory | Zion Demo squad teleported in 16566 | -6/Factory | Retrieved Zion intel report: Branch Access 16566 | -6/Factory | Identified exit to Lower Caves 16567 | -6/Factory | Zion Hover Resupply teleported in 16641 | -6/Factory | Zion Light squad teleported in 16681 | -6/Factory | Retrieved Zion intel report: Component Stockpiles 16995 | -6/Factory | Build established: Hauler-Skirmisher 17040 | -6/Factory | Retrieved Zion intel report: Prototype Schematics 17084 | -6/Factory | Retrieved Zion intel report: Component Schematics 17196 | -6/Factory | Retrieved Zion intel report: Main Access 17252 | -6/Factory | Entered Extension 17252 | -6/Extension | Accompanied by 3 allies 17462 | -6/Extension | Zion Recon squad teleported in 17697 | -6/Extension | Retrieved Zion intel report: Unaware Analyses 17701 | -6/Extension | Build established: Hauler-Gunner 17732 | -6/Extension | Retrieved Zion intel report: Component Schematics 17771 | -6/Extension | Retrieved Zion intel report: Unaware Schematics 17775 | -6/Extension | Retrieved Zion intel report: Depthwide Sectors/-1 17776 | -6/Extension | Zion Heavy squad teleported in 18140 | -6/Extension | Spotted B-75 Beast 18144 | -6/Extension | Allies destroyed B-75 Beast 18157 | -6/Extension | Spotted B-75 Beast 18166 | -6/Extension | Allies destroyed B-75 Beast 18186 | -6/Extension | Retrieved Zion intel report: Unaware Schematics 18187 | -6/Extension | Zion Infowar Resupply teleported in 18350 | -6/Extension | Found Prototype Protection 18351 | -6/Extension | Identified Zio. Weapon Casing 18472 | -6/Extension | Build established: Commander-Skirmisher 18537 | -6/Extension | Retrieved Zion intel report: Prototype Stockpiles 18538 | -6/Extension | Zion Trap Resupply teleported in 18593 | -6/Extension | Energy Cycler disabled 18593 | -6/Extension | Rescued a captive Derelict 18593 | -6/Extension | Rescued a captive Derelict 18593 | -6/Extension | Rescued a captive Derelict 18594 | -6/Extension | Rescued a captive Derelict 18595 | -6/Extension | Rescued a captive Derelict 18595 | -6/Extension | Rescued a captive Derelict 18599 | -6/Extension | Rescued a captive Derelict 18652 | -6/Extension | First assault squad dispatched 18687 | -6/Extension | Terminal network hard line cut 18814 | -6/Extension | Discovered exit to Factory (range 10) 18815 | -6/Extension | Discovered new exit (range 6) 18910 | -6/Extension | Disrupted transfer network 18911 | -6/Extension | Entered Cetus 18911 | -6/Cetus | Accompanied by 6 allies 18933 | -6/Cetus | Spotted Cetus Guard 18933 | -6/Cetus | Spotted Cetus Guard 18935 | -6/Cetus | Spotted Cetus Guard 18938 | -6/Cetus | Allies destroyed Cetus Guard 18939 | -6/Cetus | Spotted Cetus Guard 18941 | -6/Cetus | Destroyed Cetus Guard 18942 | -6/Cetus | Allies destroyed Cetus Guard 18954 | -6/Cetus | Allies destroyed Cetus Guard 19047 | -6/Cetus | Zion Heavy squad teleported in 19054 | -6/Cetus | Zion Light squad teleported in 19126 | -6/Cetus | Discovered new exit (range 16) 19159 | -6/Cetus | Entered Archives 19159 | -6/Archives | Accompanied by 5 allies 19256 | -6/Archives | Unable to access archive contents 19272 | -6/Archives | Discovered exit to Factory (range 14) 19273 | -6/Archives | Build established: Scavenger-Gunner 19293 | -6/Archives | Discovered new exit (range 15) 19324 | -6/Archives | Entered Hub_04(d) 19324 | -6/Hub_04(d) | Accompanied by 3 allies 19367 | -6/Hub_04(d) | Discovered exit to Factory (range 46) 19378 | -6/Hub_04(d) | Discovered exit to Factory (range 58) 19395 | -6/Hub_04(d) | Zion Fire squad teleported in 19445 | -6/Hub_04(d) | Garrison activated, responded to threat 19694 | -6/Hub_04(d) | Discovered exit to Factory (range 46) 19695 | -6/Hub_04(d) | Discovered exit to Factory (range 57) 19771 | -6/Hub_04(d) | Retrieved Zion intel report: Prototype Schematics 19783 | -6/Hub_04(d) | Retrieved Zion intel report: Guard Positions 19823 | -6/Hub_04(d) | Retrieved Zion intel report: Component Schematics 19847 | -6/Hub_04(d) | Retrieved Zion intel report: Active Garrisons 19957 | -6/Hub_04(d) | Retrieved Zion intel report: Prototype Schematics 19958 | -6/Hub_04(d) | Zion Recon squad teleported in 20011 | -6/Hub_04(d) | Network Hub disabled 20015 | -6/Hub_04(d) | Entered Factory 20015 | -5/Factory | Evolved 2 slots: Utility x2 20175 | -5/Factory | Discovered new exit (range 50) 20315 | -5/Factory | First assault squad dispatched 20344 | -5/Factory | Zion Heavy squad teleported in 20476 | -5/Factory | Destroyed 10 combat bots 20672 | -5/Factory | Destroyed 8 combat bots 20679 | -5/Factory | Lost 6 parts (1p1n4w) 20749 | -5/Factory | Fabricated Exp. Sensor Array (x1) 20779 | -5/Factory | Identified exit to Factory 21105 | -5/Factory | Repaired Imp. KE Penetrator 21202 | -5/Factory | Discovered new exit (range 24) 21240 | -5/Factory | Retrieved Zion intel report: Main Access 21241 | -5/Factory | Zion Heavy squad teleported in 21294 | -5/Factory | Terminal network hard line cut 21381 | -5/Factory | Identified exit to Upper Caves 21386 | -5/Factory | Entered Upper Caves 21386 | -5/Upper Caves | Accompanied by 2 allies 21491 | -5/Upper Caves | Build established: Scavenger-Skirmisher 21783 | -5/Upper Caves | Encountered a Warlord checkpoint 22607 | -5/Upper Caves | Build established: Scavenger-Assassin 22662 | -5/Upper Caves | Discovered new exit (range 12) 22770 | -5/Upper Caves | Identified exit to Upper Caves 22795 | -5/Upper Caves | Entered another Upper Caves area 22796 | -5/Upper Caves | Identified exit to Warlord 22827 | -5/Upper Caves | Discovered exit to Factory (range 11) 23466 | -5/Upper Caves | Learned location of 1 exit from Upper Caves 23643 | -5/Upper Caves | Build established: Scavenger-Skirmisher 23762 | -5/Upper Caves | Entered Warlord 23822 | -5/Warlord | System corruption cleaned by Quarantine Array 24047 | -5/Warlord | Build established: Scavenger-Mutant 24190 | -5/Warlord | Learned Armory trap positions 24190 | -5/Warlord | Learned Research trap positions 24190 | -5/Warlord | Learned Armory stockpile data 24193 | -5/Warlord | Learned Quarantine security intel 24193 | -5/Warlord | Learned Factory terminal intel 24193 | -5/Warlord | Learned Factory scanalyzer intel 24193 | -5/Warlord | Learned Armory fabricator intel 24380 | -5/Warlord | Build established: Scavenger-Assassin 24442 | -5/Warlord | Received a Watcher feed algorithm from an ecstatic Tinkerer 24554 | -5/Warlord | Visited the Vortex Lab 24561 | -5/Warlord | Found Prototype Energy Gun 24561 | -5/Warlord | Identified Vortex Rifle 24565 | -5/Warlord | Warlord's base attacked by MAIN.C 24570 | -5/Warlord | Found Prototype Energy Gun 24571 | -5/Warlord | Identified Vortex Shotgun 24577 | -5/Warlord | Found Prototype Launcher 24579 | -5/Warlord | Found Vortex Shotgun 24586 | -5/Warlord | Met EX-DEC 24590 | -5/Warlord | Found Prototype Energy Cannon 24728 | -5/Warlord | Found Prototype Device 24857 | -5/Warlord | Build established: Hauler-Mutant 24915 | -5/Warlord | Warlord forces counterattacked 24972 | -5/Warlord | Spotted Striker 24979 | -5/Warlord | Spotted Executioner 25035 | -5/Warlord | Spotted Striker 25070 | -5/Warlord | Discovered new exit (range 12) 25087 | -5/Warlord | Identified exit to Proximity Caves 25089 | -5/Warlord | Entered Proximity Caves 25091 | -4/Proximity Caves | Attracted the attention of an 0b10 outpost 25135 | -4/Proximity Caves | Destroyed 7 combat bots 25438 | -4/Proximity Caves | Build established: Hauler-Skirmisher 25819 | -4/Proximity Caves | Learned location of 1 exit from Research 26181 | -4/Proximity Caves | Discovered exit to Factory (range 17) 26277 | -4/Proximity Caves | Entered Factory 26277 | -4/Factory | Accompanied by 1 ally 26277 | -4/Factory | Evolved 2 slots: Utility x2 26278 | -4/Factory | Loaded intel: 20 terminal locations 26279 | -4/Factory | Loaded intel: 4 scanalyzer locations 26506 | -4/Factory | Identified Minesniffer Drone Bay 26740 | -4/Factory | Repaired Centrium Heavy Treads? 26751 | -4/Factory | Identified Vortex Catalyst Activator 26751 | -4/Factory | Identified BFG-9k Vortex Edition 26873 | -4/Factory | Retrieved Zion intel report: Main Access 26873 | -4/Factory | Identified exit to Research 26874 | -4/Factory | Zion Hacker squad teleported in 27148 | -4/Factory | Repaired Centrium Medium Armor Plating 27205 | -4/Factory | Repaired Adv. Cooling System? 27277 | -4/Factory | First assault squad dispatched 27320 | -4/Factory | Destroyed 9 combat bots 27687 | -4/Factory | Lost 4 parts (1n3w) 27704 | -4/Factory | Crushed by falling debris 27714 | -4/Factory | Destroyed 7 combat bots 27725 | -4/Factory | System corruption reached 10% 27794 | -4/Factory | Terminal network hard line cut 27825 | -4/Factory | Destroyed 7 combat bots 27852 | -4/Factory | High security lockdown imminent 27932 | -4/Factory | High security lockdown engaged 28009 | -4/Factory | Core integrity fell below 50% 28022 | -4/Factory | Crushed by falling debris 28042 | -4/Factory | Destroyed 9 combat bots 28056 | -4/Factory | Core integrity fell below 20% 28063 | -4/Factory | Entered Research 28063 | -3/Research | Evolved 2 slots: Weapon x2 28064 | -3/Research | Identified exit to Armory 28065 | -3/Research | Identified exit to Testing 28066 | -3/Research | Loaded intel: 83 trap records 28092 | -3/Research | Lost 14 parts (1p2n5u6w) 28093 | -3/Research | Found Hvy. Insulated Plating 28193 | -3/Research | Zion Kinetic Resupply teleported in 28287 | -3/Research | Core integrity fell below 50% 28314 | -3/Research | Lost 15 parts (1p1n6u7w) 28324 | -3/Research | Core integrity fell below 20% 28332 | -3/Research | Zion Hacker squad teleported in 28467 | -3/Research | Destroyed by S-43 Plague with Heavy Machine Gun Last Messages --------------- 28392_ Dropped Med. Treads. 28395_ Acquired Imp. Remote Datajack. 28397_ Acquired Unknown Storage. 28397_ Identified Matter Compressor. 28399_ Acquired Adv. System Shield. 28409_ Imp. Remote Datajack destroyed. 28410_ Adv. Target Analyzer destroyed. 28412_ O-24 Administrator: "IFF HANDSHAKE FAILED. SECURING TERMINAL." 28413_ Detecting system override signal. 28414_ ALERT: Suspicious activity at Terminal R001. Dispatching Investigation squad. 28414_ O-24 Administrator resets terminal and reports anomaly. 28414_ O-24 Administrator locks terminal. 28456_ Acquired Railgun. 28461_ Acquired Prototype Flight Unit. 28461_ Identified Cld. Impulse Thruster. 28464_ Acquired Railgun. 28465_ Impulse Thruster Array destroyed. 28466_ Dropped Matter Compressor. 28466_ Dropped Lgt. Antimatter Reactor. Map ----- +----------------------------------------------------+ | ???????????????????????????????????????# #????? | | ???????????????????????????????????????# #????? | | ???????????????????????????????????????# #????? | | ???????????????????????????????????????# #????? | | ???????????????????????????????????????# #????? | | ???????????????????????????????????????# #????? | | ???????????????????????????????????????# #????? | | ?????????^?????????????????????????????# #????? | | ?????????^?????????????????????????????# #????? | | ?????????^??????????######+############# #####? | | ?????????^????????? #? | | ??????????????????? #? | | ?????????^???????? #? | | ?????????^????????? #? | | ????????????????????????###### ######+### #? | | ?????????????????????????????# #????????? #? | | ???????????????############### #????????? #? | | ???????????????# #????????? | | ???????????????# ##????????? | | ???????????????# +????????? | | ????????>??? ##??????????? | | ?????????????####+########+########??????????????# | | ?????????????? ??# s #???????????????? | | ???????????????? ?# #???????????????? | | ???????????????? """ # #???????????????? | | ???????????????? """ s@s #???????????????? | | ???????????????? """ !#[!s #???????????????? | | ???????????????? ??#[s #???????????????? | | ??????????????"" ????# #???????????????? | | ?????????????? ??????# #???????????????? | | ???????????? ????????# #???????????????? | | ???????????? ??????????##########???????????????? | | ?????????????????????????????????????????????????? | | ?????????????????????????????????????????????????? | | ?????????????????????????????????????????????????? | | ?????????????????????????????????????????????????? | | ?????????????????????????????????????????????????? | | ?????????????????????????????????????????????????? | | ?????????????????????????????????????????????????? | | | | | | | | | | | | | | | | | | | | | | | +----------------------------------------------------+ Best States ------------- Heat Dissipation 95 Coolant Potential 80 Energy Generation 35 Energy Capacity 340 Matter Stores 300 Matter Capacity 550 Sight Range 16 Robot Scan Range 30 Terrain Scan Range 24 Terrain Scan Density 210 Power Amplification 20 Armor Coverage 900 Resistance: TH 10 Resistance: EM 30 Weapon Shielding 100 Evasion (%) 62 Targeting Accuracy 8 Melee Accuracy 8 Target Analysis 8 Recoil Reduction 4 Matter Filtering 50 Offensive Hacking 30 Defensive Hacking 14 Item Schematics ----------------- Hcp. Storage Unit | -10/Materials | Hacked Imp. Light Armor Plating | -9/Materials | Scanalyzed Lrg. Matter Pod | -9/Materials | Extracted Hvy. EM Pulse Gun | -9/Materials | Extracted Imp. Signal Interpreter | -9/Materials | Extracted Hcp. Matter Pod | -9/Materials | Extracted Particle Gun | -9/Materials | Extracted Med. Armor Plating | -9/Materials | Extracted Aluminum Leg | -9/Materials | Extracted Seismic Analyzer | -9/Materials | Extracted Imp. Utility Shielding | -7/Factory | Extracted Imp. Heat Sink | -7/Factory | Extracted Plasma Cannon | -7/Factory | Extracted Adv. Targeting Computer | -7/Factory | Extracted Centrium Wheel | -7/Factory | Scanalyzed Adv. Terrain Scan Processor | -7/Factory | Scanalyzed Matter Filter | -7/Factory | Scanalyzed System Restoration Module | -7/Factory | Hacked Riot Gun | -7/Zion | Free Hvy. Riot Gun | -7/Zion | Free Flamer | -7/Zion | Free Enh. Flamer | -7/Zion | Free Cld. Pulse Rifle | -6/Factory | Z-intel Cld. Plasma Cannon | -6/Factory | Z-intel Com. Ion Cannon | -6/Factory | Z-intel Imp. Heavy Laser | -6/Factory | Z-intel Ion Burst Cannon | -6/Factory | Z-intel Cld. Cesium-ion Thruster | -6/Factory | Z-intel Exp. Signal Interpreter | -6/Factory | Z-intel Exp. Sensor Array | -6/Factory | Z-intel F-cell Engine | -6/Factory | Z-intel Mni. Assault Cannon | -6/Factory | Z-intel Scatter Rocket Array | -6/Factory | Z-intel Cold Fusion Reactor | -6/Factory | Z-intel Cld. VTOL Module | -6/Factory | Z-intel Prc. Assault Rifle | -6/Factory | Z-intel Gui. EMP Blaster | -6/Factory | Z-intel Imp. Cesium-ion Thruster | -6/Factory | Z-intel Shock Maul | -6/Factory | Z-intel Prc. Shock Rifle | -6/Factory | Z-intel Adv. Beam Rifle | -6/Factory | Z-intel Imp. Spread Laser | -6/Factory | Z-intel Flak Gun | -6/Factory | Z-intel Integration Mediator | -6/Factory | Z-intel Hvy. Flak Cannon | -6/Factory | Z-intel Gravmag System | -6/Factory | Z-intel Magnetic Acceleration Cannon | -6/Factory | Z-intel Imp. Carbon-fiber Leg | -6/Factory | Z-intel Hvy. Ion Cannon | -6/Factory | Z-intel Recalibrator | -6/Factory | Z-intel Kinecellerator | -6/Factory | Z-intel Force Rifle | -6/Factory | Z-intel Med. Storage Unit | -6/Factory | Z-intel Lyr. Medium Armor Plating | -6/Factory | Z-intel Imp. Power Shielding | -6/Factory | Z-intel Shock Absorption System | -6/Factory | Z-intel Force Field | -6/Extension | Z-intel Focal Shield | -6/Extension | Z-intel System Shield | -6/Extension | Z-intel Energy Well | -6/Extension | Z-intel Lrn. Sensor Array | -6/Extension | Z-intel Imp. Integration Mediator | -6/Extension | Z-intel Lgt. Deuterium Engine | -6/Extension | Z-intel Adv. Terrain Scanner | -6/Extension | Z-intel Plasma Cutter | -6/Extension | Z-intel Fusion Compressor | -6/Extension | Z-intel Adv. Sensor Array | -6/Extension | Z-intel Great Maul | -6/Extension | Z-intel Power Shielding | -6/Extension | Z-intel Hardlight Generator | -6/Extension | Z-intel EM Shield | -6/Extension | Z-intel Cld. Aerolev Unit | -6/Hub_04(d) | Z-intel Imp. Lightning Gun | -6/Hub_04(d) | Z-intel Cld. Particle Cannon | -6/Hub_04(d) | Z-intel Thermal Defense Suite | -6/Hub_04(d) | Z-intel Exp. Targeting Computer | -6/Hub_04(d) | Z-intel Cld. Airjet | -6/Hub_04(d) | Z-intel Antimatter Cannon | -6/Hub_04(d) | Z-intel Hvy. Particle Gun | -6/Hub_04(d) | Z-intel Hpw. Electrolaser | -6/Hub_04(d) | Z-intel Enh. Nuclear Core | -6/Hub_04(d) | Z-intel Imp. EM Pulse Cannon | -6/Hub_04(d) | Z-intel Airjet | -6/Hub_04(d) | Z-intel Adv. Assault Cannon | -6/Hub_04(d) | Z-intel Transmission Jammer | -6/Hub_04(d) | Z-intel Imp. Maneuvering Thrusters | -6/Hub_04(d) | Z-intel Hrd. Light Armor Plating | -6/Hub_04(d) | Z-intel Imp. Terrain Scan Processor | -6/Hub_04(d) | Z-intel Mace | -6/Hub_04(d) | Z-intel Hvy. Flail | -6/Hub_04(d) | Z-intel Proton Cannon | -6/Hub_04(d) | Z-intel Lrn. Terrain Scanner | -6/Hub_04(d) | Z-intel Maneuvering Thrusters | -6/Hub_04(d) | Z-intel Gauss Rifle | -6/Hub_04(d) | Z-intel Mic. Nuclear Core | -6/Hub_04(d) | Z-intel Gravity Neutralizing Apparatus | -6/Hub_04(d) | Z-intel Aerolev Unit | -6/Hub_04(d) | Z-intel Rocket Array | -6/Hub_04(d) | Z-intel Prc. Rocket Launcher | -6/Hub_04(d) | Z-intel Imp. Heavy Machine Gun | -6/Hub_04(d) | Z-intel Cld. Deuterium Engine | -6/Hub_04(d) | Z-intel Impact Mace | -6/Hub_04(d) | Z-intel Biomechanical Wings | -6/Hub_04(d) | Z-intel Spectral Analyzer | -5/Factory | Scanalyzed Exp. Armor Integrity Analyzer | -4/Factory | Scanalyzed Robot Schematics ------------------ M-22 Extractor | -6/Extension | Z-intel K-01 Serf | -6/Extension | Z-intel A-15 Conveyor | -6/Extension | Z-intel S-27 Virus | -6/Extension | Z-intel W-25 Informer | -6/Extension | Z-intel R-10 Processor | -6/Extension | Z-intel G-47 Trooper | -6/Extension | Z-intel R-06 Scavenger | -6/Extension | Z-intel Fabricated ------------ Hcp. Storage Unit | x1 | -7/Factory Adv. Cooling System | x1 | -7/Factory | Preloaded Exp. Sensor Array | x1 | -5/Factory Alien Tech Used ----------------- None Achievements -------------- Friend Of Zion Challenges ------------ None Game ------ Seed ArmorReflectiveShielding Manual? 0 Play Time 04:58:11 Cumulative 196.1 hours Start 2021.09.03 @ 03:04:58 End 2021.09.03 @ 23:27:47 Sessions 3 Manual Loads 0 Difficulty Rogue Special Mode None Game No. 57 Rogue 57 Adventurer 0 Explorer 0 Win Type - Total 10 Types 9/0/1/0/0/0/0/0/0 Lore% 81 Gallery% 86 Achievement% 68 Wizard Run 0 Options --------- ASCII 0 Keyboard 0 Movement Numpad Keybinds 0 Fullscreen 1 Font 14/SmallcapsGlow Map View 84x54 Tactical HUD 1 Map Filters NONE Filters NONE Steam 1 RUN: 813a82a6-71e6-4be0-89ec-fd8178511bf3